[Event "Championnat du monde jeunes U10"]
[Date "2024.11.26"]
[White "Friscic, Jakov"]
[Black "Ejsymont, Eryk"]
[WhiteElo "1685"]
[BlackElo "1910"]
[Round "11.38"]
[Result "1/2-1/2"]
[TimeControl "5400+30"]

1. d4 {[%clk 1:30:59]} 1... Nf6 {[%clk 1:30:48]} 2. c4 {[%clk 1:31:21]} 2... e6
{[%clk 1:31:16]} 3. Nc3 {[%clk 1:31:45]} 3... Bb4 {[%clk 1:31:40]} 4. Qc2 {[%clk
1:32:04]} 4... O-O {[%clk 1:31:45]} 5. e4 {[%clk 1:32:09]} 5... d6 {[%clk
1:32:09]} 6. Bd3 {[%clk 1:32:24]} 6... Nc6 {[%clk 1:31:30]} 7. Ne2 {[%clk
1:31:27]} 7... Ba5 {[%clk 1:31:44]} 8. a3 {[%clk 1:28:16]} 8... Bb6 {[%clk
1:27:50]} 9. d5 {[%clk 1:15:48]} 9... Ne5 {[%clk 1:25:47]} 10. O-O {[%clk
1:14:01]} 10... exd5 {[%clk 1:25:25]} 11. exd5 {[%clk 1:13:06]} 11... Nfg4
{[%clk 1:22:04]} 12. Bf4 {[%clk 1:04:45]} 12... Ng6 {[%clk 1:14:39]} 13. Bg3
{[%clk 1:03:15]} 13... f5 {[%clk 1:04:51]} 14. h3 {[%clk 0:59:06]} 14... N4e5
{[%clk 1:04:50]} 15. Nf4 {[%clk 0:53:06]} 15... Qg5 {[%clk 0:53:16]} 16. Nxg6
{[%clk 0:50:36]} 16... hxg6 {[%clk 0:52:50]} 17. Bxe5 {[%clk 0:50:32]} 17...
dxe5 {[%clk 0:53:18]} 18. Kh2 {[%clk 0:46:11]} 18... Qh4 {[%clk 0:48:33]} 19.
Nb5 {[%clk 0:44:39]} 19... c6 {[%clk 0:28:35]} 20. c5 {[%clk 0:43:11]} 20...
cxb5 {[%clk 0:27:38]} 21. cxb6 {[%clk 0:43:30]} 21... f4 {[%clk 0:25:28]} 22. f3
{[%clk 0:42:40]} 22... Qg3+ {[%clk 0:24:23]} 23. Kh1 {[%clk 0:40:43]} 23... Kh7
{[%clk 0:21:09]} 24. Qf2 {[%clk 0:37:56]} 24... Qg5 {[%clk 0:20:40]} 25. Bxb5
{[%clk 0:33:52]} 25... Rh8 {[%clk 0:16:48]} 26. d6 {[%clk 0:32:30]} 26... Be6
{[%clk 0:15:57]} 27. bxa7 {[%clk 0:32:15]} 27... Kg8 {[%clk 0:14:56]} 28. Kh2
{[%clk 0:31:55]} 28... Kf7 {[%clk 0:12:20]} 29. Bc4 {[%clk 0:28:36]} 29... Bxc4
{[%clk 0:11:39]} 30. Qc5 {[%clk 0:27:59]} 30... Be6 {[%clk 0:03:47]} 31. Qc7+
{[%clk 0:28:14]} 31... Kf6 {[%clk 0:03:03]} 32. Qe7+ {[%clk 0:27:56]} 32... Kf5
{[%clk 0:03:32]} 33. Qxg7 {[%clk 0:27:38]} 33... Qg3+ {[%clk 0:02:33]} 34. Kh1
{[%clk 0:25:12]} 34... Rag8 {[%clk 0:02:47]} 35. a8=Q {[%clk 0:25:14]} 35...
Rxa8 {[%clk 0:02:19]} 36. Rae1 {[%clk 0:25:18]} 36... Rxh3+ {[%clk 0:01:12]}
1/2-1/2

[Variant "Standard"]
[Site "Europe Echecs"]

[Event "Championnat du monde jeunes U10"]
[Date "2024.11.26"]
[White "Chkhartishvili, Lazare"]
[Black "Kalinichenko, German Yu"]
[WhiteElo "1836"]
[BlackElo "1621"]
[Round "11.39"]
[Result "0-1"]
[TimeControl "5400+30"]

1. e4 {[%clk 1:30:59]} 1... e5 {[%clk 1:30:53]} 2. Nf3 {[%clk 1:31:22]} 2... Nc6
{[%clk 1:31:19]} 3. d4 {[%clk 1:31:45]} 3... exd4 {[%clk 1:31:43]} 4. Bc4 {[%clk
1:31:51]} 4... Nf6 {[%clk 1:32:07]} 5. e5 {[%clk 1:32:09]} 5... d5 {[%clk
1:32:30]} 6. Bb5 {[%clk 1:32:35]} 6... Ne4 {[%clk 1:32:48]} 7. Nxd4 {[%clk
1:32:52]} 7... Bd7 {[%clk 1:33:12]} 8. Bxc6 {[%clk 1:33:17]} 8... bxc6 {[%clk
1:33:36]} 9. O-O {[%clk 1:33:42]} 9... Bc5 {[%clk 1:33:40]} 10. f3 {[%clk
1:34:02]} 10... Ng5 {[%clk 1:34:05]} 11. f4 {[%clk 1:34:29]} 11... Ne4 {[%clk
1:34:27]} 12. Be3 {[%clk 1:34:54]} 12... Bb6 {[%clk 1:34:53]} 13. a4 {[%clk
1:34:40]} 13... c5 {[%clk 1:35:04]} 14. Ne2 {[%clk 1:18:47]} 14... d4 {[%clk
1:34:38]} 15. a5 {[%clk 1:16:47]} 15... dxe3 {[%clk 1:34:23]} 16. Qd3 {[%clk
1:13:58]} 16... Bf5 {[%clk 1:31:18]} 17. Qxe3 {[%clk 1:11:50]} 17... h5 {[%clk
1:25:07]} 18. axb6 {[%clk 0:53:08]} 18... axb6 {[%clk 1:25:16]} 19. Nbc3 {[%clk
0:52:07]} 19... Nxc3 {[%clk 1:25:15]} 20. Qxc3 {[%clk 0:52:31]} 20... Rxa1
{[%clk 1:24:30]} 21. Rxa1 {[%clk 0:52:32]} 21... h4 {[%clk 1:23:50]} 22. e6
{[%clk 0:25:56]} 22... O-O {[%clk 1:23:05]} 23. exf7+ {[%clk 0:22:20]} 23...
Rxf7 {[%clk 1:22:24]} 24. Qc4 {[%clk 0:15:22]} 24... Bg4 {[%clk 1:19:45]} 25.
Qe4 {[%clk 0:06:33]} 25... Re7 {[%clk 1:17:07]} 26. Ra8 {[%clk 0:06:52]} 26...
Rxe4 {[%clk 1:17:30]} 27. Rxd8+ {[%clk 0:07:19]} 27... Kh7 {[%clk 1:17:35]} 28.
Nc3 {[%clk 0:06:58]} 28... Rxf4 {[%clk 1:17:21]} 29. Rd2 {[%clk 0:03:25]} 29...
Be6 {[%clk 1:14:54]} 30. Nd5 {[%clk 0:01:19]} 30... Bxd5 {[%clk 1:15:15]} 31.
Rxd5 {[%clk 0:01:44]} 31... Rd4 {[%clk 1:15:42]} 32. Re5 {[%clk 0:00:51]} 32...
Rd1+ {[%clk 1:16:08]} 33. Kf2 {[%clk 0:01:06]} 33... Rd2+ {[%clk 1:16:36]} 34.
Re2 {[%clk 0:00:46]} 34... Rxe2+ {[%clk 1:16:30]} 35. Kxe2 {[%clk 0:01:15]}
35... Kg6 {[%clk 1:16:31]} 36. c4 {[%clk 0:00:59]} 36... Kf5 {[%clk 1:16:53]}
37. Kf3 {[%clk 0:01:14]} 37... g5 {[%clk 1:17:19]} 38. g4+ {[%clk 0:01:04]}
38... Ke5 {[%clk 1:17:34]} 39. Ke3 {[%clk 0:01:13]} 39... c6 40. h3 {[%clk
0:01:11]} 40... b5 {[%clk 1:18:13]} 41. b3 {[%clk 0:01:14]} 41... b4 {[%clk
1:18:33]} 42. Ke2 {[%clk 0:00:55]} 42... Ke4 {[%clk 1:18:57]} 43. Kd2 {[%clk
0:01:06]} 43... Kf3 {[%clk 1:19:17]} 44. Kd3 {[%clk 0:01:26]} 44... Kg3 {[%clk
1:19:44]} 45. Ke3 {[%clk 0:01:37]} 45... Kxh3 {[%clk 1:19:44]} 46. Kf3 {[%clk
0:01:46]} 46... Kh2 {[%clk 1:20:09]} 47. Kf2 {[%clk 0:01:59]} 47... h3 {[%clk
1:20:30]} 0-1

[Variant "Standard"]
[Site "Europe Echecs"]

[Event "Championnat du monde jeunes U10"]
[Date "2024.11.26"]
[White "Kovacs, Balazs"]
[Black "Rama, Federico"]
[WhiteElo "1800"]
[BlackElo "1564"]
[Round "11.40"]
[Result "1-0"]
[TimeControl "5400+30"]

1. e4 {[%clk 1:30:58]} 1... c5 {[%clk 1:30:55]} 2. Nf3 {[%clk 1:31:22]} 2... e6
{[%clk 1:31:20]} 3. d4 {[%clk 1:31:47]} 3... cxd4 {[%clk 1:31:43]} 4. Nxd4
{[%clk 1:32:02]} 4... Nc6 {[%clk 1:32:06]} 5. Nc3 {[%clk 1:32:28]} 5... a6
{[%clk 1:32:07]} 6. a3 {[%clk 1:32:46]} 6... Qc7 {[%clk 1:32:26]} 7. Nxc6 {[%clk
1:29:21]} 7... bxc6 {[%clk 1:31:55]} 8. g3 {[%clk 1:20:26]} 8... d5 {[%clk
1:32:05]} 9. Bg2 {[%clk 1:19:28]} 9... Bd6 {[%clk 1:28:22]} 10. O-O {[%clk
1:15:24]} 10... Nf6 {[%clk 1:28:15]} 11. Bg5 {[%clk 1:13:20]} 11... Be5 {[%clk
1:22:44]} 12. Kh1 {[%clk 0:57:16]} 12... O-O {[%clk 1:18:35]} 13. Qd2 {[%clk
0:48:50]} 13... d4 {[%clk 0:59:19]} 14. Ne2 {[%clk 0:48:44]} 14... c5 {[%clk
0:59:20]} 15. f4 {[%clk 0:48:40]} 15... Bd6 {[%clk 0:54:10]} 16. e5 {[%clk
0:46:46]} 16... Bxe5 {[%clk 0:53:44]} 17. fxe5 {[%clk 0:46:53]} 17... Nd5 {[%clk
0:50:17]} 18. c4 {[%clk 0:35:43]} 18... dxc3 {[%clk 0:49:22]} 19. Nxc3 {[%clk
0:35:53]} 19... Qxe5 {[%clk 0:48:14]} 20. Nxd5 {[%clk 0:35:23]} 20... exd5
{[%clk 0:47:58]} 21. Qxd5 {[%clk 0:35:38]} 21... Qxd5 {[%clk 0:47:39]} 22. Bxd5
{[%clk 0:36:00]} 22... Rb8 {[%clk 0:47:41]} 23. Be7 {[%clk 0:36:23]} 23... Bb7
{[%clk 0:46:19]} 24. Bxb7 {[%clk 0:35:43]} 24... Rfe8 {[%clk 0:46:33]} 25. Bxa6
{[%clk 0:32:54]} 25... Rxe7 {[%clk 0:46:33]} 26. Rae1 {[%clk 0:29:56]} 26... Rd7
{[%clk 0:45:44]} 27. Bc4 {[%clk 0:29:49]} 27... h6 {[%clk 0:45:41]} 28. Rf2
{[%clk 0:28:27]} 28... Rbd8 {[%clk 0:43:25]} 29. Rxf7 {[%clk 0:26:46]} 29...
Rxf7 {[%clk 0:43:02]} 30. Rf1 {[%clk 0:27:10]} 30... Rf8 {[%clk 0:42:47]} 31.
Rxf7 {[%clk 0:27:25]} 31... Rxf7 {[%clk 0:43:12]} 32. a4 {[%clk 0:27:51]} 32...
Kf8 {[%clk 0:43:12]} 33. Bxf7 {[%clk 0:28:16]} 33... Ke7 {[%clk 0:43:14]} 34. a5
{[%clk 0:28:29]} 34... Kd7 {[%clk 0:43:33]} 35. a6 {[%clk 0:28:46]} 35... Kc7
{[%clk 0:43:58]} 36. Bc4 {[%clk 0:29:11]} 36... Kb6 {[%clk 0:43:14]} 37. Kg2
{[%clk 0:29:33]} 37... g5 {[%clk 0:43:12]} 38. Kf3 {[%clk 0:29:56]} 38... h5
{[%clk 0:43:32]} 39. Ke4 {[%clk 0:30:14]} 39... Kc6 {[%clk 0:43:14]} 40. Kf5
{[%clk 0:30:17]} 40... h4 {[%clk 0:42:55]} 41. Kxg5 {[%clk 0:30:39]} 41... hxg3
{[%clk 0:43:12]} 42. hxg3 {[%clk 0:31:05]} 42... Kc7 {[%clk 0:43:27]} 43. Kf6
{[%clk 0:31:25]} 43... Kc8 {[%clk 0:43:29]} 44. g4 {[%clk 0:31:47]} 44... Kc7
{[%clk 0:43:51]} 45. g5 {[%clk 0:32:06]} 45... Kb8 {[%clk 0:44:16]} 46. g6
{[%clk 0:32:32]} 46... Ka8 {[%clk 0:44:10]} 47. g7 {[%clk 0:32:56]} 47... Ka7
{[%clk 0:44:30]} 48. g8=Q {[%clk 0:33:16]} 48... Kb6 {[%clk 0:44:45]} 49. Qb8+
{[%clk 0:33:39]} 49... Kc6 {[%clk 0:44:57]} 50. b3 {[%clk 0:33:39]} 50... Kd7
{[%clk 0:45:06]} 51. Bb5# {[%clk 0:34:06]} 1-0

[Variant "Standard"]
[Site "Europe Echecs"]

[Event "Championnat du monde jeunes U10"]
[Date "2024.11.26"]
[White "Makhsatuly, Rakhim"]
[Black "Guntaka, Aayansh"]
[WhiteElo "1683"]
[BlackElo "1798"]
[Round "11.41"]
[Result "1-0"]
[TimeControl "5400+30"]

1. e4 {[%clk 1:30:58]} 1... c5 {[%clk 1:30:56]} 2. Nf3 {[%clk 1:31:03]} 2... Nc6
{[%clk 1:31:18]} 3. d4 {[%clk 1:31:19]} 3... cxd4 {[%clk 1:31:37]} 4. Nxd4
{[%clk 1:31:46]} 4... Nf6 {[%clk 1:31:57]} 5. Nc3 {[%clk 1:32:12]} 5... d6
{[%clk 1:32:17]} 6. Bg5 {[%clk 1:32:24]} 6... e6 {[%clk 1:32:34]} 7. Qd2 {[%clk
1:32:48]} 7... a6 {[%clk 1:32:55]} 8. Nxc6 {[%clk 1:33:14]} 8... bxc6 {[%clk
1:32:54]} 9. O-O-O {[%clk 1:33:35]} 9... Be7 {[%clk 1:28:09]} 10. Bxf6 {[%clk
1:32:53]} 10... gxf6 {[%clk 1:28:17]} 11. Bc4 {[%clk 1:32:41]} 11... O-O {[%clk
1:24:48]} 12. Qh6 {[%clk 1:25:53]} 12... Kh8 {[%clk 1:20:19]} 13. Rd3 {[%clk
1:22:52]} 13... Rg8 {[%clk 1:19:52]} 14. Rh3 {[%clk 1:22:00]} 14... Rg7 {[%clk
1:20:06]} 15. f4 {[%clk 1:21:16]} 15... Qg8 {[%clk 1:18:17]} 16. Rg3 {[%clk
1:20:55]} 16... Rg6 {[%clk 1:15:18]} 17. Qh5 {[%clk 1:21:05]} 17... Qg7 {[%clk
1:12:29]} 18. f5 {[%clk 1:14:13]} 18... Rxg3 {[%clk 1:11:19]} 19. hxg3 {[%clk
1:12:39]} 19... Qg5+ {[%clk 1:10:37]} 20. Qxg5 {[%clk 1:13:02]} 20... fxg5
{[%clk 1:10:58]} 21. g4 {[%clk 1:13:13]} 21... d5 {[%clk 1:10:02]} 22. Bd3
{[%clk 1:12:28]} 22... d4 {[%clk 1:04:25]} 23. Na4 {[%clk 1:06:25]} 23... e5
{[%clk 1:00:11]} 24. Nb6 {[%clk 1:06:48]} 24... Rb8 {[%clk 1:00:36]} 25. Nxc8
{[%clk 1:07:15]} 25... Rxc8 {[%clk 1:01:00]} 26. Bxa6 {[%clk 1:07:39]} 26... Rb8
{[%clk 1:00:55]} 27. Bc4 {[%clk 1:06:55]} 27... Kg7 {[%clk 1:00:17]} 28. Rh3
{[%clk 1:03:13]} 28... Rb4 {[%clk 0:57:28]} 29. Bb3 {[%clk 0:59:50]} 29... Rb6
{[%clk 0:56:28]} 30. a3 {[%clk 0:59:36]} 30... Rb7 {[%clk 0:54:30]} 31. Bc4
{[%clk 0:57:50]} 31... Ra7 {[%clk 0:54:13]} 32. Rb3 {[%clk 0:57:46]} 32... Bc5
{[%clk 0:54:29]} 33. Rb8 {[%clk 0:57:44]} 33... Be7 {[%clk 0:50:42]} 34. Rb6
{[%clk 0:57:32]} 34... Rc7 {[%clk 0:47:28]} 35. b4 {[%clk 0:54:06]} 35... c5
{[%clk 0:39:53]} 36. b5 {[%clk 0:54:12]} 36... Ra7 {[%clk 0:40:03]} 37. Ra6
{[%clk 0:54:06]} 37... Rb7 {[%clk 0:38:59]} 38. a4 {[%clk 0:53:35]} 38... Bd8
{[%clk 0:38:32]} 39. a5 {[%clk 0:53:54]} 39... Rd7 {[%clk 0:35:45]} 40. b6
{[%clk 0:52:14]} 40... Rb7 {[%clk 0:35:16]} 41. Bd5 {[%clk 0:51:28]} 41... Rb8
{[%clk 0:35:35]} 42. b7 {[%clk 0:51:47]} 42... c4 {[%clk 0:35:27]} 43. Ra8
{[%clk 0:51:58]} 43... Bxa5 {[%clk 0:34:09]} 44. Rxb8 {[%clk 0:52:02]} 44... Bc7
{[%clk 0:34:34]} 45. Rc8 {[%clk 0:50:23]} 45... Bd6 {[%clk 0:35:00]} 46. b8=Q
{[%clk 0:49:42]} 46... Bxb8 {[%clk 0:35:22]} 47. Rxb8 {[%clk 0:49:24]} 47... d3
{[%clk 0:35:34]} 48. cxd3 {[%clk 0:49:50]} 48... cxd3 {[%clk 0:35:59]} 49. Bxf7
{[%clk 0:50:04]} 49... Kxf7 {[%clk 0:35:39]} 50. Rb6 {[%clk 0:50:26]} 50... Kg7
{[%clk 0:35:58]} 51. Kd2 {[%clk 0:50:52]} 51... Kf7 {[%clk 0:36:21]} 52. Kxd3
{[%clk 0:51:17]} 52... Kg7 {[%clk 0:36:45]} 53. Kc4 {[%clk 0:51:39]} 53... Kf7
{[%clk 0:37:10]} 54. Kd5 {[%clk 0:52:05]} 54... Kg7 {[%clk 0:37:32]} 55. Kxe5
{[%clk 0:52:30]} 55... Kf7 {[%clk 0:37:55]} 56. Rb7+ {[%clk 0:52:49]} 56... Kf8
{[%clk 0:38:04]} 57. Ke6 {[%clk 0:53:02]} 57... h5 {[%clk 0:38:19]} 58. gxh5
{[%clk 0:53:29]} 58... g4 {[%clk 0:38:40]} 59. g3 {[%clk 0:53:54]} 59... Kg8
{[%clk 0:39:03]} 60. Kf6 {[%clk 0:54:16]} 60... Kh8 {[%clk 0:39:15]} 61. Kg6
{[%clk 0:52:56]} 61... Kg8 {[%clk 0:39:37]} 62. Rb8# {[%clk 0:53:22]} 1-0

[Variant "Standard"]
[Site "Europe Echecs"]

[Event "Championnat du monde jeunes U10"]
[Date "2024.11.26"]
[White "Blekh, Erik"]
[Black "Megagiannis, Maximos"]
[WhiteElo "1790"]
[BlackElo "1682"]
[Round "11.42"]
[Result "1-0"]
[TimeControl "5400+30"]

1. Nf3 {[%clk 1:30:55]} 1... d5 {[%clk 1:30:50]} 2. g3 {[%clk 1:31:17]} 2... Nd7
{[%clk 1:31:13]} 3. c4 {[%clk 1:30:32]} 3... dxc4 {[%clk 1:31:30]} 4. Qa4 {[%clk
1:30:41]} 4... Nf6 {[%clk 1:30:27]} 5. Bg2 {[%clk 1:30:38]} 5... c6 {[%clk
1:27:00]} 6. Qxc4 {[%clk 1:30:52]} 6... Nb6 {[%clk 1:25:16]} 7. Qc2 {[%clk
1:30:49]} 7... g6 {[%clk 1:24:56]} 8. b3 {[%clk 1:30:12]} 8... Bf5 {[%clk
1:24:53]} 9. d3 {[%clk 1:30:28]} 9... Bg7 {[%clk 1:24:24]} 10. Bb2 {[%clk
1:30:46]} 10... O-O {[%clk 1:23:02]} 11. O-O {[%clk 1:31:06]} 11... Nfd7 {[%clk
1:02:59]} 12. Bxg7 {[%clk 1:30:00]} 12... Kxg7 {[%clk 1:02:13]} 13. Nd4 {[%clk
1:29:45]} 13... e5 {[%clk 1:00:04]} 14. Nxf5+ {[%clk 1:29:21]} 14... gxf5 {[%clk
1:00:32]} 15. f4 {[%clk 1:25:17]} 15... Qf6 {[%clk 0:48:29]} 16. Nc3 {[%clk
1:23:38]} 16... Rae8 {[%clk 0:41:28]} 17. Kh1 {[%clk 1:19:42]} 17... Re6 {[%clk
0:22:52]} 18. h3 {[%clk 1:13:35]} 18... Qg6 {[%clk 0:18:20]} 19. Kh2 {[%clk
1:12:05]} 19... Nf6 {[%clk 0:12:49]} 20. e4 {[%clk 1:04:01]} 20... Nh5 {[%clk
0:04:17]} 21. g4 {[%clk 0:58:30]} 21... fxg4 {[%clk 0:01:00]} 22. f5 {[%clk
0:58:50]} 22... Qh6 {[%clk 0:00:34]} 23. fxe6 {[%clk 0:58:54]} 23... Nf4 {[%clk
0:00:33]} 24. Rxf4 {[%clk 0:58:01]} 24... Qxf4+ {[%clk 0:00:44]} 25. Kh1 {[%clk
0:58:01]} 25... gxh3 {[%clk 0:00:39]} 26. Bxh3 {[%clk 0:58:18]} 26... Qh4 {[%clk
0:00:35]} 27. Qh2 {[%clk 0:57:38]} 27... fxe6 {[%clk 0:00:31]} 28. Rg1+ {[%clk
0:57:21]} 28... Kh8 {[%clk 0:00:32]} 29. Qxe5+ {[%clk 0:57:06]} 29... Qf6 {[%clk
0:00:32]} 30. Qxf6+ {[%clk 0:57:19]} 30... Rxf6 {[%clk 0:00:57]} 31. Rf1 {[%clk
0:57:26]} 31... Rxf1+ {[%clk 0:00:41]} 32. Bxf1 {[%clk 0:57:52]} 32... Kg7
{[%clk 0:00:41]} 33. Bh3 {[%clk 0:58:18]} 33... Kf6 {[%clk 0:00:40]} 34. Kg2
{[%clk 0:58:36]} 34... Nd7 {[%clk 0:00:35]} 35. d4 {[%clk 0:58:31]} 35... Nf8
{[%clk 0:00:32]} 36. Kf3 {[%clk 0:58:01]} 36... Ng6 {[%clk 0:00:31]} 37. e5+
{[%clk 0:57:41]} 37... Kf7 {[%clk 0:00:51]} 38. Ne4 {[%clk 0:57:59]} 38... Ke7
{[%clk 0:00:31]} 39. Ng5 {[%clk 0:58:07]} 1-0

[Variant "Standard"]
[Site "Europe Echecs"]

[Event "Championnat du monde jeunes U10"]
[Date "2024.11.26"]
[White "Otetileu, Amanbek"]
[Black "Santoro, Marco Antonio"]
[WhiteElo "1632"]
[BlackElo "1765"]
[Round "11.43"]
[Result "1-0"]
[TimeControl "5400+30"]

1. e4 {[%clk 1:30:49]} 1... d6 {[%clk 1:30:53]} 2. d4 {[%clk 1:31:12]} 2... Nf6
{[%clk 1:31:16]} 3. Nc3 {[%clk 1:31:36]} 3... Nbd7 {[%clk 1:31:40]} 4. Nf3
{[%clk 1:31:38]} 4... e5 {[%clk 1:32:02]} 5. dxe5 {[%clk 1:31:54]} 5... dxe5
{[%clk 1:32:22]} 6. Bg5 {[%clk 1:32:08]} 6... Be7 {[%clk 1:32:43]} 7. Qd2 {[%clk
1:32:32]} 7... h6 {[%clk 1:33:05]} 8. Bxf6 {[%clk 1:32:30]} 8... Bxf6 {[%clk
1:33:14]} 9. O-O-O {[%clk 1:32:54]} 9... O-O {[%clk 1:33:34]} 10. h4 {[%clk
1:32:41]} 10... Re8 {[%clk 1:32:19]} 11. g4 {[%clk 1:32:13]} 11... Nc5 {[%clk
1:31:09]} 12. Qe3 {[%clk 1:32:17]} 12... Nd7 {[%clk 1:30:38]} 13. g5 {[%clk
1:32:29]} 13... hxg5 {[%clk 1:31:01]} 14. hxg5 {[%clk 1:32:56]} 14... Be7 {[%clk
1:31:16]} 15. g6 {[%clk 1:33:18]} 15... Nc5 {[%clk 1:29:31]} 16. gxf7+ {[%clk
1:33:39]} 16... Kxf7 {[%clk 1:29:49]} 17. Rxd8 {[%clk 1:33:57]} 17... Rxd8
{[%clk 1:30:13]} 18. Nxe5+ {[%clk 1:34:18]} 18... Kg8 {[%clk 1:30:18]} 19. Bc4+
{[%clk 1:34:37]} 19... Be6 {[%clk 1:30:40]} 20. Qh3 {[%clk 1:34:42]} 20... Nd3+
{[%clk 1:30:45]} 21. cxd3 {[%clk 1:35:06]} 21... Bg5+ {[%clk 1:31:04]} 22. Kc2
{[%clk 1:35:32]} 22... Kf8 {[%clk 1:31:04]} 23. Qh8+ {[%clk 1:35:57]} 23... Ke7
{[%clk 1:31:27]} 24. Qxg7+ {[%clk 1:36:25]} 24... Kd6 {[%clk 1:31:49]} 25. Nb5+
{[%clk 1:36:51]} 25... Kc5 {[%clk 1:32:10]} 26. Qxc7+ {[%clk 1:37:15]} 26... Kb4
{[%clk 1:32:34]} 27. a3+ {[%clk 1:37:41]} 27... Ka4 {[%clk 1:32:58]} 28. b3#
{[%clk 1:38:08]} 1-0

[Variant "Standard"]
[Site "Europe Echecs"]

[Event "Championnat du monde jeunes U10"]
[Date "2024.11.26"]
[White "Nguyen Minh"]
[Black "Burba, Mikita"]
[WhiteElo "1760"]
[BlackElo "1528"]
[Round "11.44"]
[Result "1/2-1/2"]
[TimeControl "5400+30"]

1. d4 {[%clk 1:30:54]} 1... d5 {[%clk 1:30:53]} 2. c4 {[%clk 1:31:18]} 2... e6
{[%clk 1:31:08]} 3. Nf3 {[%clk 1:31:42]} 3... Nf6 {[%clk 1:31:29]} 4. Nc3 {[%clk
1:32:06]} 4... Nbd7 {[%clk 1:30:24]} 5. Bg5 {[%clk 1:32:20]} 5... Be7 {[%clk
1:30:43]} 6. e3 {[%clk 1:32:44]} 6... O-O {[%clk 1:31:01]} 7. Bd3 {[%clk
1:33:07]} 7... dxc4 {[%clk 1:31:10]} 8. Bxc4 {[%clk 1:33:26]} 8... c5 {[%clk
1:31:28]} 9. O-O {[%clk 1:33:36]} 9... cxd4 {[%clk 1:31:25]} 10. Nxd4 {[%clk
1:33:50]} 10... Nb6 {[%clk 1:28:31]} 11. Bb3 {[%clk 1:32:03]} 11... Nbd5 {[%clk
1:25:40]} 12. Nxd5 {[%clk 1:31:25]} 12... Nxd5 {[%clk 1:25:39]} 13. Bxe7 {[%clk
1:31:39]} 13... Qxe7 {[%clk 1:24:42]} 14. Bxd5 {[%clk 1:31:37]} 14... exd5
{[%clk 1:25:04]} 15. Rc1 {[%clk 1:31:42]} 15... Be6 {[%clk 1:20:32]} 16. Qd2
{[%clk 1:30:34]} 16... Rac8 {[%clk 1:16:54]} 17. Rfd1 {[%clk 1:24:23]} 17...
Rfd8 {[%clk 1:10:14]} 18. h3 {[%clk 1:21:26]} 18... h6 {[%clk 1:07:35]} 19. Ne2
{[%clk 1:18:40]} 19... Rc6 {[%clk 0:47:55]} 20. Qd4 {[%clk 1:12:37]} 20... Ra8
{[%clk 0:35:39]} 21. Nf4 {[%clk 1:09:41]} 21... Rac8 {[%clk 0:35:04]} 22. Ne2
{[%clk 1:00:45]} 22... b6 {[%clk 0:22:00]} 23. Rxc6 {[%clk 0:56:57]} 23... Rxc6
{[%clk 0:22:22]} 24. Nc3 {[%clk 0:56:54]} 24... Qg5 {[%clk 0:18:51]} 25. h4
{[%clk 0:46:16]} 25... Qh5 {[%clk 0:17:10]} 26. Nxd5 {[%clk 0:45:46]} 26... Bxd5
{[%clk 0:17:03]} 27. Qxd5 {[%clk 0:46:05]} 27... Qxd5 {[%clk 0:17:24]} 28. Rxd5
{[%clk 0:46:32]} 28... Rc1+ {[%clk 0:17:48]} 29. Kh2 {[%clk 0:46:57]} 29... Rc2
{[%clk 0:18:14]} 30. Rd8+ {[%clk 0:46:25]} 30... Kh7 {[%clk 0:18:37]} 31. Rd7
{[%clk 0:46:09]} 31... Rxf2 {[%clk 0:18:19]} 32. Rxa7 {[%clk 0:46:23]} 32...
Rxb2 {[%clk 0:18:42]} 33. a4 {[%clk 0:45:25]} 33... Kg6 {[%clk 0:16:34]} 34. Kg3
{[%clk 0:45:46]} 34... Rb4 {[%clk 0:16:15]} 35. Ra6 {[%clk 0:45:04]} 35... f6
{[%clk 0:14:36]} 36. Ra7 {[%clk 0:44:25]} 36... h5 {[%clk 0:11:54]} 37. Ra6
{[%clk 0:43:27]} 37... Rg4+ {[%clk 0:10:17]} 38. Kf3 {[%clk 0:43:38]} 38... Rxh4
{[%clk 0:08:55]} 39. e4 {[%clk 0:43:56]} 39... Rh1 {[%clk 0:09:15]} 40. Rxb6
{[%clk 0:44:13]} 40... Ra1 {[%clk 0:08:12]} 41. Rb4 {[%clk 0:43:56]} 41... Kh6
{[%clk 0:07:40]} 42. Rc4 {[%clk 0:38:19]} 42... Kg6 {[%clk 0:07:30]} 43. g3
{[%clk 0:36:11]} 43... Kh6 {[%clk 0:07:18]} 44. Kf4 {[%clk 0:34:05]} 44... Rf1+
{[%clk 0:07:40]} 45. Ke3 {[%clk 0:34:29]} 45... Rg1 {[%clk 0:06:57]} 46. Kf2
{[%clk 0:33:22]} 46... Ra1 {[%clk 0:06:59]} 47. Rb4 {[%clk 0:30:06]} 47... Kg6
{[%clk 0:05:43]} 48. Kf3 {[%clk 0:26:26]} 48... Kh6 {[%clk 0:04:40]} 49. Rd4
{[%clk 0:24:20]} 49... Kg6 {[%clk 0:04:39]} 50. Rc4 {[%clk 0:24:36]} 50... Kh6
{[%clk 0:04:54]} 51. Rb4 {[%clk 0:24:53]} 51... Kg6 {[%clk 0:05:16]} 52. Rc4
{[%clk 0:22:26]} 52... Kh6 {[%clk 0:05:37]} 1/2-1/2

[Variant "Standard"]
[Site "Europe Echecs"]